bitfinex-derivatives/quotes_ETHF0:USTF0_20250314
["timestamp","ask_amount","ask_price","bid_price","bid_amount"]
[1741967986974,1.04803072,1922.8,1922.7,1.04028]
[1741967988073,0.00780072,1922.8,1922.7,1.04028]
[1741967988278,0.00780072,1922.8,1922.7,7.97028]
[1741967988279,1.04803072,1922.8,1922.7,7.97028]
[1741967988478,0.00780072,1922.8,1922.7,7.97028]
[1741967988675,1.04803072,1922.8,1922.7,7.97028]
[1741967990881,1.04803072,1922.8,1922.7,6.93]
[1741967991277,1.04039,1922.5,1922.4,16.46556946]
[1741967992682,1.04039,1922.5,1922.4,23.33096946]
[1741967993074,6.7887,1922.6,1922.5,1.04039]
[1741967993378,7.82904,1922.6,1922.5,6.4906]
[1741967993877,1.04034,1922.6,1922.5,7.53099]
[1741967994082,6.47910072,1922.8,1922.5,6.4906]
[1741967994282,6.47910072,1922.8,1922.5,7.53095]
[1741967994283,1.04034,1922.6,1922.5,7.53095]
[1741967995686,1.04031,1922.7,1922.6,1.04028]
[1741967995979,0.00780072,1922.8,1922.7,1.04028]
[1741967996687,3.2078,1923.3,1922.8,2.60054]
[1741967996886,3.2078,1923.3,1922.7,6.588]
[1741967996887,12.10542,1923.3,1922.9,16.5077]
[1741967997087,1.04012,1923.0,1922.9,17.54782]
[1741967997274,12.10542,1923.3,1922.9,16.5077]
[1741967997585,1.04009,1923.1,1923.0,1.04011]
[1741967997785,1.04009,1923.1,1923.0,7.62811]
[1741967997993,1.04009,1923.1,1923.0,6.588]
[1741967998179,1.04009,1923.1,1923.0,7.62812]
[1741967999882,1.75557255,1923.2,1923.1,1.04007]
[1741968000086,6.30550072,1923.3,1923.1,3.2078]
[1741968000280,6.30550072,1923.3,1923.2,6.7406]
[1741968000792,7.34546072,1923.3,1923.2,6.7406]
[1741968001082,8.18457487,1923.3,1923.2,6.7406]
[1741968001890,0.00780072,1923.3,1923.2,6.7406]
[1741968002689,3.2078,1923.6,1923.2,9.9484]
[1741968002891,1.03996,1923.3,1923.2,9.9484]
[1741968003788,1.03996,1923.3,1923.2,6.7406]
[1741968004581,0.00780072,1923.4,1923.2,9.9484]
[1741968004784,0.00780072,1923.4,1923.3,1.03996]
[1741968004990,2.7644956,1924.0,1923.2,12.4484]
[1741968005287,1.01766103,1924.0,1923.9,4.24743]
[1741968005788,2.59855,1924.3,1923.7,4.24751]
[1741968006086,2.19547839,1924.8,1923.8,0.00780072]
[1741968006087,3.2078,1924.1,1923.8,0.00780072]
[1741968006286,0.00780072,1924.2,1923.8,13.41780072]
[1741968006481,1.03958,1924.0,1923.9,10.1838]
[1741968006685,1.03955,1924.1,1923.8,7.48145072]
[1741968006887,1.03958,1924.0,1923.9,6.976]
[1741968007089,1.03963,1923.9,1923.8,0.00780072]
[1741968007791,3.53963,1923.9,1923.8,0.00780072]
[1741968007995,1.03983,1923.6,1923.4,1.03988]
[1741968008186,1.03983,1923.6,1923.5,1.03985]
[1741968008381,4.95071115,1924.0,1923.4,6.9174]
[1741968008588,1.03971,1923.8,1923.6,1.03975]
[1741968008790,1.0396,1924.0,1923.8,1.03969]
[1741968008991,1.03958,1924.1,1923.9,7.95701]
[1741968009488,1.04730072,1924.2,1923.9,7.95701]
[1741968009689,1.04732072,1924.2,1923.9,7.95701]
[1741968009883,0.00780072,1924.2,1923.8,6.3523]
[1741968010094,0.00780072,1924.2,1923.8,13.2697]
[1741968010295,1.04731072,1924.2,1924.0,1.03956]
[1741968010594,0.00780072,1924.2,1924.1,1.03953]
[1741968011286,0.00780072,1924.2,1924.1,10.84223]
[1741968011686,1.03924,1924.7,1924.4,1.03935]
[1741968012287,1.03924,1924.7,1924.5,1.03929]
[1741968012494,1.0392,1924.7,1924.4,1.03932]
[1741968012701,1.03929,1924.6,1924.3,3.2078]
[1741968012894,0.00780072,1924.7,1924.5,1.03928]
[1741968013091,1.04705072,1924.7,1924.4,1.03934]
[1741968013395,1.04705072,1924.7,1924.5,1.03928]
[1741968013793,0.00780072,1924.7,1924.6,1.03926]
[1741968014598,1.03927,1924.6,1924.3,3.2078]
[1741968014789,7.60564,1924.5,1924.2,1.03942]
[1741968014990,7.60564,1924.5,1924.1,16.6596]
[1741968015188,7.60564,1924.5,1924.3,1.0394]
[1741968015795,6.5663,1924.5,1924.3,1.03938]
[1741968016099,6.5663,1924.5,1924.4,1.03936]
[1741968016791,6.5663,1924.5,1924.4,7.98076]
[1741968016997,4.14580072,1924.7,1924.4,6.9414]
[1741968017298,0.00780072,1924.7,1924.6,1.03926]
[1741968017500,6.48400072,1924.7,1924.6,1.03926]
[1741968018293,0.00780072,1924.7,1924.6,1.03926]
[1741968018500,0.00780072,1924.7,1924.6,14.67146]
[1741968018796,0.00780072,1924.7,1924.4,1.03935]
[1741968018797,1.04703072,1924.7,1924.4,1.03935]
[1741968018997,6.4762,1924.6,1924.5,1.03931]
[1741968019592,6.4762,1924.6,1924.4,7.87132]
[1741968019795,6.4762,1924.6,1924.4,6.832]
[1741968019992,6.4762,1924.6,1924.5,1.03931]
[1741968020201,6.4762,1924.6,1924.4,7.87131]
[1741968020692,6.4762,1924.6,1924.5,1.03931]
[1741968021093,6.4762,1924.6,1924.5,4.24711]
[1741968021298,6.4762,1924.6,1924.4,7.87133]
[1741968021600,6.4762,1924.6,1924.4,7.87132]
[1741968021988,6.4762,1924.6,1924.5,1.03931]
[1741968022200,6.4762,1924.6,1924.4,6.832]
[1741968022395,7.51547,1924.6,1924.4,7.87133]
[1741968022698,1.03947,1924.2,1924.1,3.2078]
[1741968022902,5.7835,1924.5,1924.1,1.0395]
[1741968023204,1.03943,1924.3,1924.1,1.0395]
[1741968023395,6.3085,1924.2,1924.0,6.5604]
[1741968023703,6.3085,1924.2,1924.1,1.03953]
[1741968024705,7.34799,1924.2,1924.0,7.59996]
[1741968024904,1.03959,1924.0,1923.8,7.34266]
[1741968025102,6.3085,1923.9,1923.8,14.25019]
[1741968025298,7.34813,1923.9,1923.8,6.9075]
[1741968025498,7.34814,1923.9,1923.7,4.66033018]
[1741968025798,1.03951,1924.2,1924.0,1.03956]
[1741968025998,6.3085,1924.1,1924.0,1.03956]
[1741968026305,6.3085,1924.1,1924.0,7.94706]
[1741968026505,7.34803,1924.1,1924.0,7.94708]
[1741968027008,9.5163,1924.1,1923.7,3.21560072]
[1741968027210,6.3085,1924.1,1923.7,10.20730072]
[1741968027404,1.03963,1923.9,1923.8,1.03966]
[1741968027599,1.03969,1923.8,1923.7,8.03921072]
[1741968027805,1.03969,1923.8,1923.7,0.00780072]
[1741968028303,6.3619,1923.8,1923.7,1.04754072]
[1741968028506,7.40159,1923.8,1923.7,0.00780072]
[1741968028694,6.3619,1923.8,1923.7,1.04754072]
[1741968029210,7.40159,1923.8,1923.7,1.04754072]
[1741968029910,6.3619,1923.8,1923.7,1.04754072]
[1741968030115,9.9115,1924.3,1923.7,9.42775018]
[1741968030411,6.9672,1924.2,1924.1,1.0395]
[1741968030703,6.9672,1924.2,1923.7,12.59273018]
[1741968030902,1.03956,1924.1,1923.9,1.03959]
[1741968031203,7.74314,1924.3,1924.0,6.9352]
[1741968031411,1.03949,1924.2,1924.1,1.03951]
[1741968031604,8.57850579,1924.3,1924.2,1.03947]
[1741968031815,8.57850579,1924.3,1924.1,1.03948]
[1741968032004,4.24715,1924.5,1924.1,2.59874]
[1741968032201,1.0394,1924.4,1924.3,1.03938]
[1741968032405,1.0394,1924.4,1924.2,14.56462]
[1741968032610,1.03942,1924.3,1924.2,13.80993625]
[1741968033108,1.0394,1924.4,1924.3,1.03941]
[1741968033608,1.03942,1924.3,1924.2,13.80998625]
[1741968033806,1.03942,1924.3,1924.2,6.9352]
[1741968034002,1.0395,1924.2,1923.9,9.41969946]
[1741968034201,1.03953,1924.1,1924.0,7.72383]
[1741968034512,1.03949,1924.2,1924.1,1.03947]
[1741968034811,5.1654,1924.4,1924.3,1.03942]
[1741968035011,2.05569236,1924.5,1924.4,1.03936]
[1741968035513,1.03939,1924.4,1924.3,1.03938]
[1741968035708,1.01635236,1924.6,1924.2,6.6843]
[1741968035906,4.22415236,1924.6,1924.2,13.6589]
[1741968036118,6.82232236,1924.6,1924.2,13.6589]
[1741968036301,1.03938,1924.4,1924.3,1.03937]
[1741968036708,1.03942,1924.3,1924.2,14.69834]
[1741968036903,1.74308817,1924.5,1924.1,3.2078]
[1741968037108,2.59855,1924.3,1923.9,10.08832946]
[1741968037410,1.03958,1924.0,1923.9,11.12795946]
[1741968037609,14.4408,1924.2,1923.8,1.03967]
[1741968037908,1.03961,1924.0,1923.9,1.03958]
[1741968038307,1.03961,1924.0,1923.8,6.4755]
[1741968038308,1.74308817,1924.1,1924.0,1.03958]
[1741968038508,1.8753419,1924.1,1924.0,1.03958]
[1741968038908,0.8358119,1924.1,1923.8,6.4755]
[1741968039108,1.0396,1924.0,1923.9,1.03958]
[1741968039306,1.8753719,1924.1,1924.0,1.03958]
[1741968039614,1.03961,1924.0,1923.9,1.03959]
[1741968040020,1.74560618,1924.1,1923.7,8.97990072]
[1741968040217,1.03969,1923.9,1923.8,1.03967]
[1741968040410,1.03966,1923.9,1923.8,1.03965]
[1741968040909,1.0396,1924.0,1923.9,1.0396]
[1741968041303,1.8753419,1924.1,1924.0,1.03958]
[1741968041717,1.03953,1924.1,1924.0,1.03958]
[1741968041909,1.87750441,1924.1,1924.0,1.03958]
[1741968042212,11.8421,1924.2,1923.9,3.2078]
[1741968042411,1.03958,1924.0,1923.9,4.24739]
[1741968042725,1.03943,1924.3,1924.2,1.03943]
[1741968042917,1.03938,1924.4,1924.3,1.03939]
[1741968043113,5.08524241,1924.5,1924.4,1.03936]
[1741968043321,1.03941,1924.4,1924.0,13.10517946]
[1741968043617,4.9556094,1924.5,1924.3,1.03942]
[1741968043809,2.76684724,1924.5,1924.3,1.03942]
[1741968044012,2.89652025,1924.5,1924.3,1.03942]
[1741968044210,1.03936,1924.4,1924.3,1.03942]
[1741968044410,1.03936,1924.4,1924.2,6.73683]
[1741968044610,1.03939,1924.4,1924.3,1.03941]
[1741968044810,7.35833241,1924.5,1924.2,5.6974]
[1741968045112,7.35833241,1924.5,1924.4,1.03936]
[1741968045314,8.39764241,1924.5,1924.2,5.6974]
[1741968045609,7.35833241,1924.5,1924.2,5.6974]
[1741968045811,7.35833241,1924.5,1924.4,1.03936]
[1741968046321,0.00780072,1924.7,1924.4,1.03936]
[1741968046620,0.00780072,1924.7,1924.6,1.03926]
[1741968047509,0.00780072,1924.7,1924.6,4.24706]
[1741968047724,0.00780072,1924.7,1924.6,1.03926]
[1741968048815,1.04703072,1924.7,1924.5,10.96480946]
[1741968049116,7.67116,1924.6,1924.5,10.96480946]
[1741968049420,6.6319,1924.6,1924.5,10.96480946]
[1741968050012,9.8397,1924.6,1924.5,3.61282946]
[1741968050321,6.6319,1924.6,1924.5,4.65213946]
[1741968050622,7.67116,1924.6,1924.5,3.61282946]
[1741968051919,1.03932,1924.5,1924.4,1.03932]
[1741968052321,1.0394,1924.4,1924.1,10.1542]
[1741968052613,9.6279,1924.4,1924.1,12.9164]
[1741968052814,12.41682953,1924.4,1924.3,1.03942]
[1741968053009,8.16964953,1924.4,1924.3,1.03942]
[1741968053211,8.29854131,1924.4,1924.3,1.03942]
[1741968053416,7.25936366,1924.4,1924.3,1.03942]
[1741968054015,3.21560072,1924.7,1924.3,5.97]
[1741968054320,4.25483072,1924.7,1924.5,1.03928]
[1741968054618,6.3513,1924.6,1924.5,1.03931]
[1741968054917,7.1905516,1924.6,1924.5,1.03931]
[1741968055112,0.00780072,1924.7,1924.6,1.03926]
[1741968055413,1.04702072,1924.7,1924.4,1.03936]
[1741968055616,1.04702072,1924.7,1924.6,1.03926]
[1741968055617,7.39832072,1924.7,1924.6,1.03926]
[1741968055824,7.39830072,1924.7,1924.3,10.094]
[1741968056021,7.39830072,1924.7,1924.5,1.03928]
[1741968056022,1.03926,1924.6,1924.5,1.03928]
[1741968056216,1.03926,1924.6,1924.3,10.094]
[1741968056217,1.03926,1924.6,1924.3,11.13338]
[1741968056413,1.03932,1924.5,1924.3,11.13338]
[1741968056608,1.03929,1924.6,1924.4,1.03934]
[1741968056915,0.00780072,1924.7,1924.4,1.03935]
[1741968057119,6.8467,1924.6,1924.3,11.13338]
[1741968057322,1.03935,1924.5,1924.3,11.13338]
[1741968057616,1.03934,1924.5,1924.3,11.13339]
[1741968057816,3.81609258,1924.7,1924.5,1.03928]
[1741968058021,1.03928,1924.6,1924.3,10.094]
[1741968058224,1.03928,1924.6,1924.4,4.24716]
[1741968058418,7.89375072,1924.7,1924.5,1.03931]
[1741968058616,7.89375072,1924.7,1924.4,4.24712]
[1741968058617,1.03927,1924.6,1924.4,4.24712]
[1741968059016,1.03927,1924.6,1924.4,3.2078]
[1741968059218,1.03927,1924.6,1924.4,4.24715]
[1741968059521,1.03926,1924.6,1924.3,10.094]
[1741968059825,1.03926,1924.6,1924.4,1.03934]
[1741968060623,8.95557627,1924.6,1924.4,1.03934]
[1741968060921,8.75556787,1924.6,1924.3,5.97]
[1741968061127,15.47623787,1924.6,1924.4,1.03933]
[1741968061420,14.63698627,1924.6,1924.5,1.03931]
[1741968061628,14.32768593,1924.6,1924.5,1.03931]
[1741968061821,7.25e-06,1924.6,1924.5,3.53931]
[1741968062023,0.00780072,1924.7,1924.6,1.03926]
[1741968062320,0.00780072,1924.7,1924.6,4.24706]
[1741968062514,0.00780072,1924.7,1924.6,8.37006]
[1741968063119,0.00780072,1924.7,1924.6,4.24706]
[1741968063321,0.00780072,1924.7,1924.4,3.2078]
[1741968063526,3.21560072,1924.7,1924.5,1.03929]
[1741968063722,6.7379,1924.6,1924.5,1.03929]
[1741968064125,1.02839787,1924.7,1924.6,1.03926]
[1741968064322,0.00780072,1924.7,1924.6,1.03926]
[1741968064525,0.00780072,1924.7,1924.6,4.24706]
[1741968065327,5.6814,1925.2,1924.6,4.24706]
[1741968065328,1.02059715,1925.0,1924.9,1.03909]
[1741968065518,12.4193,1925.2,1924.9,4.24689]
[1741968065719,12.4193,1925.2,1925.0,1.03902]
[1741968065925,1.03902,1925.1,1924.8,9.9622]
[1741968066127,6.3874,1925.1,1925.0,1.03904]
[1741968066326,9.7659,1925.4,1925.0,3.2078]
[1741968066327,10.80475,1925.4,1925.0,3.2078]
[1741968066537,6.3874,1925.3,1925.2,1.03892]
[1741968067526,0.00780072,1925.4,1925.0,5.80537]
[1741968067732,0.00780072,1925.4,1925.3,1.03888]
[1741968067932,6.39520072,1925.4,1925.3,1.03888]
[1741968070127,0.00780072,1925.4,1925.3,1.03888]
[1741968071423,0.00780072,1925.4,1925.3,3.53888]
[1741968071424,7.2e-07,1925.4,1925.3,3.53888]
[1741968071624,7.2e-07,1925.4,1925.3,1.03888]
[1741968073125,7.2e-07,1925.4,1925.3,3.53888]
[1741968073329,7.2e-07,1925.4,1925.3,9.50888]
[1741968074130,7.2e-07,1925.4,1925.3,15.92098]
[1741968074333,7.2e-07,1925.4,1925.3,13.42098]
[1741968074926,7.2e-07,1925.4,1925.3,15.92098]
[1741968075529,7.2e-07,1925.4,1925.3,13.42098]
[1741968075831,7.2e-07,1925.4,1925.3,17.54198]
[1741968077736,7.2e-07,1925.4,1925.3,17.54098]
[1741968078636,7.2e-07,1925.4,1925.3,5.97]
[1741968078838,7.2e-07,1925.4,1925.3,7.00888]
[1741968079140,7.2e-07,1925.4,1925.3,1.03888]
[1741968079435,1.03886072,1925.4,1925.1,1.03895]
[1741968079639,7.0356,1925.3,1925.0,8.36679]
[1741968079834,1.039,1925.1,1924.9,1.04686072]
[1741968080032,7.0356,1925.0,1924.9,1.04689072]
[1741968080931,7.0356,1925.0,1924.9,7.80649072]
[1741968081438,7.0356,1925.0,1924.9,11.01429072]
[1741968081632,9.016,1925.2,1925.1,1.03899]
[1741968082233,5.8082,1925.2,1925.1,4.24679]
[1741968082437,7.2e-07,1925.4,1925.3,1.03888]
[1741968082632,7.2e-07,1925.4,1925.1,3.2078]
[1741968082832,6.38130072,1925.4,1925.3,1.03888]
[1741968083249,6.38130072,1925.4,1925.2,7.62058]
[1741968083640,7.42013072,1925.4,1925.2,1.03888]
[1741968083943,7.42012072,1925.4,1925.2,1.0389]
[1741968084129,1.03889,1925.3,1925.1,3.2078]
[1741968084332,6.5249,1925.2,1925.1,4.24679]
[1741968085743,6.5249,1925.2,1925.1,3.2078]
[1741968086038,1.03899,1925.1,1925.0,5.988]
[1741968086239,5.4504,1925.1,1925.0,7.02704]
[1741968086639,5.4504,1925.1,1925.0,13.96004]
[1741968087944,5.4504,1925.1,1924.9,0.00780072]
[1741968088148,6.546,1925.0,1924.9,1.04687072]
[1741968088848,6.546,1925.0,1924.9,0.00780072]
[1741968089137,6.546,1925.0,1924.9,1.04689072]
[1741968089843,6.546,1925.0,1924.9,4.25469072]
[1741968090038,6.546,1925.0,1924.9,10.73159072]
[1741968091147,3.20780072,1925.4,1924.9,9.69250072]
[1741968091341,6.4882,1925.3,1925.2,1.03889]
[1741968091548,7.52708,1925.3,1925.1,7.42324]
[1741968091746,7.52708,1925.3,1925.1,1.03894]
[1741968092045,8.54224398,1925.3,1925.1,1.03894]
[1741968092345,8.30903473,1925.3,1924.9,6.39210072]
[1741968092643,9.34792473,1925.3,1925.1,1.03894]
[1741968092836,9.34792473,1925.3,1924.9,12.19762072]
[1741968092837,8.30903473,1925.3,1924.9,12.19762072]
[1741968093044,9.34793473,1925.3,1925.1,1.03895]
[1741968093233,12.42323432,1925.3,1925.1,1.03895]
[1741968093438,8.54227398,1925.3,1925.1,1.03895]
[1741968093639,7.29374543,1925.3,1924.9,9.59990072]
[1741968093837,8.33263543,1925.3,1925.1,1.03896]
[1741968094040,1.03893,1925.2,1925.0,1.03903]
[1741968094239,7.0315,1925.1,1925.0,1.03904]
[1741968095545,7.0315,1925.1,1925.0,8.08614]
[1741968096143,7.0315,1925.1,1925.0,1.03904]
[1741968096840,7.0315,1925.1,1925.0,7.45204]
[1741968097241,7.0315,1925.1,1925.0,1.03904]
[1741968097639,13.6334,1925.1,1925.0,1.03904]
[1741968098049,14.64891595,1925.1,1925.0,1.03904]
[1741968098447,8.04701595,1925.1,1925.0,1.03904]
[1741968098752,7.0315,1925.1,1925.0,7.45204]
[1741968099643,2.05354523,1925.3,1925.0,6.413]
[1741968099844,12.44267945,1925.4,1925.2,1.03893]
[1741968100044,10.73199595,1925.4,1925.0,9.01059]
[1741968100247,1.81953673,1925.3,1925.2,1.03893]
[1741968100454,2.05354523,1925.3,1925.1,1.03895]
[1741968100747,6.4483,1925.2,1925.1,1.03895]
[1741968102350,5.47070072,1925.4,1925.3,1.03888]
[1741968103745,12.30630072,1925.4,1925.3,1.03888]
[1741968104541,12.30630072,1925.4,1925.3,4.24668]
[1741968104749,7.2e-07,1925.4,1925.3,8.36368]
[1741968104950,7.2e-07,1925.4,1925.3,14.19698]
[1741968108558,7.2e-07,1925.4,1925.3,20.18498]
[1741968109355,7.2e-07,1925.4,1925.3,7.02688]
[1741968109553,7.2e-07,1925.4,1925.3,10.23468]
[1741968111945,7.2e-07,1925.4,1925.3,12.73468]
[1741968112149,7.2e-07,1925.4,1925.3,10.23468]
[1741968112353,7.2e-07,1925.4,1925.3,7.02688]
[1741968112752,6.82540072,1925.4,1925.3,7.02688]
[1741968115461,7.2e-07,1925.4,1925.3,10.23468]
[1741968115649,7.2e-07,1925.4,1925.3,14.34968]
[1741968117453,7.2e-07,1925.4,1925.3,7.02688]
[1741968118364,7.2e-07,1925.4,1925.3,10.23468]
[1741968120556,7.2e-07,1925.4,1925.3,7.02688]
[1741968122062,6.58120072,1925.4,1925.3,10.23468]
[1741968123066,7.2e-07,1925.4,1925.3,10.23468]
[1741968125368,7.2e-07,1925.4,1925.3,23.53408]
[1741968126075,7.2e-07,1925.4,1925.3,21.03408]
[1741968127870,7.2e-07,1925.4,1925.3,16.92108]
[1741968128565,6.53750072,1925.4,1925.3,16.92108]
[1741968131077,7.2e-07,1925.4,1925.3,16.92108]
[1741968132767,6.38830072,1925.4,1925.3,16.92108]
[1741968132972,7.2e-07,1925.4,1925.3,16.92108]
[1741968133373,6.38830072,1925.4,1925.3,16.92108]
[1741968133772,6.38830072,1925.4,1925.3,10.23468]
[1741968134478,6.38830072,1925.4,1925.3,17.20608]
[1741968137581,7.2e-07,1925.4,1925.3,17.20608]
[1741968137774,7.2e-07,1925.4,1925.3,19.70608]
[1741968138171,7.2e-07,1925.4,1925.3,17.20608]
[1741968138375,7.2e-07,1925.4,1925.3,19.70608]
[1741968138572,7.2e-07,1925.4,1925.3,23.81708]
[1741968139077,7.2e-07,1925.4,1925.3,21.31708]
[1741968139776,7.2e-07,1925.4,1925.3,17.20608]
[1741968139972,7.2e-07,1925.4,1925.3,21.31608]
[1741968140973,7.2e-07,1925.4,1925.3,23.39358]
[1741968141172,7.2e-07,1925.4,1925.3,19.28358]
[1741968141576,5.49590072,1925.4,1925.3,19.28358]
[1741968142678,7.2e-07,1925.4,1925.3,21.78358]
[1741968143182,7.2e-07,1925.4,1925.3,19.28358]
[1741968144478,7.2e-07,1925.4,1925.3,20.00648]
[1741968146382,7.2e-07,1925.4,1925.3,22.50648]
[1741968146583,7.2e-07,1925.4,1925.3,20.00648]
[1741968146777,7.2e-07,1925.4,1925.3,22.50648]
[1741968147788,7.2e-07,1925.4,1925.3,20.00648]
[1741968148178,7.2e-07,1925.4,1925.3,22.50648]
[1741968148780,7.2e-07,1925.4,1925.3,20.00648]
[1741968150091,7.2e-07,1925.4,1925.3,22.50648]
[1741968152077,11.8854,1925.8,1925.7,1.03866]
[1741968152078,5.37526,1925.8,1925.7,1.03866]
[1741968152282,6.5664,1926.2,1926.1,1.03845]
[1741968152482,6.5664,1926.2,1926.1,4.24625]
[1741968152988,6.5664,1926.2,1926.1,1.03845]
[1741968153184,6.5664,1926.2,1926.1,4.24625]
[1741968154286,6.5664,1926.2,1926.1,3.2078]
[1741968154486,6.5664,1926.2,1926.1,1.03845]
[1741968155181,13.3503,1926.2,1926.1,1.03845]
[1741968157498,13.3503,1926.2,1926.1,4.24625]
[1741968158098,13.3503,1926.2,1926.1,10.84045]
[1741968158393,13.3503,1926.2,1926.1,7.63265]
[1741968158596,13.3503,1926.2,1926.0,5.99580072]
[1741968158793,6.9878,1926.1,1926.0,7.03427072]
[1741968159291,9.4878,1926.1,1925.7,3.2078]
[1741968159495,5.80419,1925.9,1925.5,1.03873]
[1741968159793,6.4127,1925.8,1925.7,1.03866]
[1741968159993,13.354,1925.8,1925.7,1.03866]
[1741968160398,14.36492434,1925.8,1925.7,1.03866]
[1741968160696,16.20559101,1925.8,1925.7,1.03866]
[1741968160892,15.16698101,1925.8,1925.7,1.03866]
[1741968161193,14.36492434,1925.8,1925.7,1.03866]
[1741968161592,14.36492434,1925.8,1925.7,1.14506]
[1741968161788,14.39261,1925.8,1925.7,1.14506]
[1741968162189,15.19472668,1925.8,1925.7,0.1064]
[1741968162587,15.19472668,1925.8,1925.4,1.03881]
[1741968162588,23.18252873,1925.8,1925.4,1.03881]
[1741968162899,23.18252873,1925.8,1925.2,3.2078]
[1741968162900,1.03875,1925.6,1925.5,1.03872]
[1741968163083,9.65682165,1925.7,1925.6,1.03872]
[1741968163283,1.03876,1925.6,1925.5,1.76155]
[1741968163498,4.24656,1925.6,1925.5,1.76155]
[1741968163689,1.03877,1925.5,1925.4,1.03879]
[1741968163889,5.95098873,1925.6,1925.4,0.00780072]
[1741968164091,1.03877,1925.5,1925.4,1.04660072]
[1741968164786,1.03877,1925.5,1925.4,0.00780072]
[1741968165894,2.5,1925.5,1925.0,42.0148]
[1741968166191,1.03899,1925.2,1925.1,1.03897]
[1741968166393,1.03899,1925.1,1925.0,43.0538]
[1741968166591,7.63979,1925.1,1925.0,38.807]
[1741968166900,10.84759,1925.1,1925.0,10.0]
[1741968167095,18.54827098,1925.1,1924.5,2.0032]
[1741968167297,1.03926,1924.6,1924.5,2.0032]
[1741968167888,1.03926,1924.6,1924.5,3.04251]
[1741968168089,1.03926,1924.6,1924.5,2.0032]
[1741968168695,6.6008,1924.6,1924.4,1.04714072]
[1741968168892,1.03931,1924.5,1924.4,1.04714072]
[1741968169092,6.41881,1924.5,1924.4,1.04714072]
[1741968169295,6.41881,1924.5,1924.4,0.00780072]
[1741968169989,6.41881,1924.5,1924.4,1.04716072]
[1741968170401,6.41881,1924.5,1924.4,0.00780072]
[1741968172190,5.3795,1924.5,1924.1,12.9605]
[1741968172397,6.7294,1924.4,1924.0,10.2651]
[1741968172702,6.11197,1924.3,1924.1,1.03953]
[1741968172907,6.7294,1924.2,1924.1,1.03953]
[1741968173193,6.7294,1924.2,1924.1,8.09683]
[1741968174695,6.7294,1924.2,1924.0,3.21560072]
[1741968174895,5.6173,1924.1,1924.0,3.21560072]
[1741968175088,5.6173,1924.1,1924.0,10.27290072]
[1741968175287,6.65683,1924.1,1924.0,10.27290072]
[1741968176002,6.65683,1924.1,1924.0,3.21560072]
[1741968176206,6.65683,1924.1,1924.0,0.00780072]
[1741968177002,9.86463,1924.1,1924.0,0.00780072]
[1741968177204,2.59896,1924.0,1923.0,4.24792]
[1741968177393,1.04007,1923.1,1922.8,33.068]
[1741968177698,7.52465,1923.0,1922.8,4.24802]
[1741968177903,6.4845,1923.0,1922.9,1.04017]
[1741968178098,12.3969,1923.4,1922.9,7.0686]
[1741968178400,0.00780072,1923.1,1923.0,1.0401]
[1741968178989,0.00780072,1923.1,1923.0,11.1291]
[1741968179706,0.00780072,1923.1,1923.0,6.8812]
[1741968180008,6.99210072,1923.1,1923.0,6.8812]
[1741968180195,6.99210072,1923.1,1923.0,7.92132]
[1741968180599,0.00780072,1923.1,1923.0,7.92132]
[1741968181499,14.10101,1923.6,1923.3,1.03994]
[1741968181806,8.35161,1923.6,1923.4,7.9733]
[1741968181998,6.5335,1923.5,1923.4,7.9733]
[1741968182193,3.2078,1923.6,1923.4,7.97327]
[1741968182506,3.2078,1923.6,1923.4,6.9334]
[1741968182507,1.03985,1923.5,1923.4,6.9334]
[1741968182695,6.5335,1923.6,1923.0,2.60019]
[1741968182696,13.1375,1923.6,1923.0,4.24788]
[1741968183002,9.13327,1923.4,1922.9,5.828]
[1741968183200,1.0401,1923.1,1922.9,6.9334]
[1741968183395,3.2078,1923.5,1923.2,1.04001]
[1741968183598,6.5335,1923.3,1923.2,1.04001]
[1741968183903,9.13342,1923.3,1922.9,6.59133]
[1741968184196,7.57349,1923.3,1922.9,5.5512]
[1741968184402,7.0333,1923.2,1922.9,5.5512]
[1741968184605,1.0401,1923.1,1922.9,1.04015]
[1741968184798,7.0333,1923.0,1922.9,7.89945]
[1741968186104,7.0333,1923.0,1922.8,0.00520044]
[1741968186301,1.04017,1922.9,1922.8,0.00520044]
[1741968186898,8.07347,1922.9,1922.8,0.00520044]
[1741968187199,14.67747,1922.9,1922.8,1e-08]
[1741968187706,14.76086089,1922.9,1922.8,1e-08]
[1741968187899,14.67747,1922.9,1922.8,1e-08]
[1741968188401,14.67747,1922.9,1921.9,5.80954]
[1741968188402,1.04066,1922.1,1921.9,3.2078]
[1741968188602,6.8727,1922.0,1921.8,12.667]
[1741968188795,7.91341,1922.0,1921.8,12.667]
[1741968189107,6.8727,1922.0,1921.9,1.04072]
[1741968189804,6.8727,1922.0,1921.9,4.24852]
[1741968190000,1.04841072,1922.1,1921.9,4.24852]
[1741968190189,0.00780072,1922.1,1921.9,3.2078]
[1741968190396,1.04841072,1922.1,1921.9,3.2078]
[1741968190701,1.04067,1922.0,1921.9,1.04068]
[1741968190898,7.46387,1922.0,1921.9,1.04068]
[1741968191604,1.04072,1921.9,1921.8,0.00780072]
[1741968191797,1.04093,1921.5,1921.4,5.932]
[1741968191994,3.2078,1921.5,1921.2,5.932]
[1741968192208,1.04104,1921.3,1921.2,6.97307]
[1741968192499,6.4232,1921.4,1921.2,6.97305]
[1741968192701,1.04104,1921.3,1921.2,6.97305]
[1741968192908,1.04104,1921.3,1921.2,5.932]
[1741968193299,1.04109,1921.2,1921.1,6.9948]
[1741968193494,7.48919,1921.2,1921.1,6.9948]
[1741968194098,7.48919,1921.2,1921.1,13.6644]
[1741968194296,11.55088,1921.2,1920.7,4.24914]
[1741968194609,1.04137,1920.7,1920.6,5.932]
[1741968195204,6.45590072,1920.8,1920.6,5.932]
[1741968195406,7.49723072,1920.8,1920.7,6.6696]
[1741968195601,7.49723072,1920.8,1920.7,7.71097]
[1741968195602,6.45590072,1920.8,1920.7,7.71097]